[Event "Titled Tuesday Blitz May 17 Early 2022"]
[White "Jaracz, Pawel"]
[Black "Oparin, Grigoriy"]
[WhiteFideId "1102222"]
[BlackFideId "24125890"]
[WhiteElo "2429"]
[BlackElo "2665"]
[Result "0-1"]
[Round "02"]
[TimeControl "180+1"]
[Date "2022.05.17"]
[WhiteClock "0:01:35"]
[BlackClock "0:01:30"]

1. e4 {[%clk 0:03:00]}  c5 {[%clk 0:02:59]} 2. Nf3 {[%clk 0:03:01]}  d6 {[%clk 0:03:00]} 3. Bb5+ {[%clk 0:02:59]}  Nd7 {[%clk 0:03:00]} 4. d4 {[%clk 0:02:58]}  cxd4 {[%clk 0:02:59]} 5. Qxd4 {[%clk 0:02:58]}  a6 {[%clk 0:02:59]} 6. Bxd7+ {[%clk 0:02:58]}  Bxd7 {[%clk 0:03:00]} 7. O-O {[%clk 0:02:58]}  h6 {[%clk 0:02:55]} 8. a4 {[%clk 0:02:57]}  Nf6 {[%clk 0:02:54]} 9. a5 {[%clk 0:02:52]}  e5 {[%clk 0:02:50]} 10. Qd3 {[%clk 0:02:52]}  b5 {[%clk 0:02:40]} 11. axb6 {[%clk 0:02:51]}  Qxb6 {[%clk 0:02:40]} 12. Nc3 {[%clk 0:02:50]}  Be7 {[%clk 0:02:40]} 13. Nd2 {[%clk 0:02:48]}  O-O {[%clk 0:02:37]} 14. Nc4 {[%clk 0:02:47]}  Qc6 {[%clk 0:02:38]} 15. Ne3 {[%clk 0:02:47]}  Rfc8 {[%clk 0:02:34]} 16. Ncd5 {[%clk 0:02:45]}  Nxd5 {[%clk 0:02:33]} 17. Nxd5 {[%clk 0:02:45]}  Bd8 {[%clk 0:02:34]} 18. c3 {[%clk 0:02:45]}  a5 {[%clk 0:02:22]} 19. Be3 {[%clk 0:02:40]}  Qc4 {[%clk 0:02:15]} 20. Qxc4 {[%clk 0:02:36]}  Rxc4 {[%clk 0:02:16]} 21. f3 {[%clk 0:02:36]}  Rb8 {[%clk 0:02:07]} 22. Ra2 {[%clk 0:02:33]}  f5 {[%clk 0:01:57]} 23. exf5 {[%clk 0:02:24]}  Bxf5 {[%clk 0:01:58]} 24. Rd1 {[%clk 0:02:24]}  Be6 {[%clk 0:01:56]} 25. Bc1 {[%clk 0:02:18]}  Rc5 {[%clk 0:01:52]} 26. c4 {[%clk 0:02:12]}  Rxc4 {[%clk 0:01:52]} 27. Ra1 {[%clk 0:02:10]}  Rd4 {[%clk 0:01:36]} 28. Rxd4 {[%clk 0:02:05]}  exd4 {[%clk 0:01:37]} 29. Nf4 {[%clk 0:02:05]}  Bc4 {[%clk 0:01:37]} 30. Bd2 {[%clk 0:02:02]}  Rxb2 {[%clk 0:01:33]} 31. Bxa5 {[%clk 0:02:02]}  Bg5 {[%clk 0:01:31]} 32. Nh3 {[%clk 0:02:00]}  Be3+ {[%clk 0:01:30]} 33. Kh1 {[%clk 0:02:00]}  d3 {[%clk 0:01:31]} 34. Bc3 {[%clk 0:01:35]}  Rc2 {[%clk 0:01:30]} 0-1


[Site "https://www.chess.com"]

[Event "Titled Tuesday Blitz May 17 Early 2022"]
[White "Karolczuk, Iwo"]
[Black "Abdusattorov, Nodirbek"]
[WhiteFideId "21816972"]
[BlackFideId "14204118"]
[WhiteElo "2258"]
[BlackElo "2663"]
[Result "0-1"]
[Round "02"]
[TimeControl "180+1"]
[Date "2022.05.17"]
[WhiteClock "0:00:02"]
[BlackClock "0:00:36"]

1. d4 {[%clk 0:03:00]}  Nf6 {[%clk 0:03:00]} 2. Nf3 {[%clk 0:02:59]}  g6 {[%clk 0:03:00]} 3. c3 {[%clk 0:02:58]}  Bg7 {[%clk 0:03:00]} 4. Bf4 {[%clk 0:02:59]}  O-O {[%clk 0:03:00]} 5. e3 {[%clk 0:02:59]}  d6 {[%clk 0:03:00]} 6. h3 {[%clk 0:02:59]}  Nfd7 {[%clk 0:03:01]} 7. Be2 {[%clk 0:02:59]}  e5 {[%clk 0:03:01]} 8. Bh2 {[%clk 0:02:59]}  Nc6 {[%clk 0:03:02]} 9. O-O {[%clk 0:02:58]}  Qe7 {[%clk 0:02:54]} 10. b4 {[%clk 0:02:58]}  h5 {[%clk 0:02:47]} 11. b5 {[%clk 0:02:56]}  Nd8 {[%clk 0:02:47]} 12. c4 {[%clk 0:02:56]}  Ne6 {[%clk 0:02:41]} 13. Nc3 {[%clk 0:02:51]}  f5 {[%clk 0:02:34]} 14. Re1 {[%clk 0:02:10]}  e4 {[%clk 0:02:32]} 15. Nd2 {[%clk 0:02:09]}  Nf6 {[%clk 0:02:32]} 16. Qb3 {[%clk 0:02:02]}  Kh7 {[%clk 0:02:27]} 17. Nd5 {[%clk 0:01:59]}  Qf7 {[%clk 0:02:15]} 18. Rac1 {[%clk 0:01:56]}  h4 {[%clk 0:02:07]} 19. Nxf6+ {[%clk 0:01:46]}  Bxf6 {[%clk 0:02:07]} 20. c5 {[%clk 0:01:45]}  dxc5 {[%clk 0:01:50]} 21. d5 {[%clk 0:01:41]}  Ng7 {[%clk 0:01:27]} 22. Rxc5 {[%clk 0:01:36]}  Ne8 {[%clk 0:01:28]} 23. Rec1 {[%clk 0:01:23]}  Bd8 {[%clk 0:01:27]} 24. d6 {[%clk 0:00:56]}  Be6 {[%clk 0:01:27]} 25. Bc4 {[%clk 0:00:56]}  Bxc4 {[%clk 0:01:27]} 26. Nxc4 {[%clk 0:00:54]}  cxd6 {[%clk 0:01:27]} 27. Nxd6 {[%clk 0:00:54]}  Qxb3 {[%clk 0:01:28]} 28. axb3 {[%clk 0:00:53]}  Nxd6 {[%clk 0:01:26]} 29. Bxd6 {[%clk 0:00:54]}  Rf7 {[%clk 0:01:26]} 30. Rc8 {[%clk 0:00:46]}  Rxc8 {[%clk 0:01:26]} 31. Rxc8 {[%clk 0:00:47]}  Rd7 {[%clk 0:01:26]} 32. Be5 {[%clk 0:00:40]}  g5 {[%clk 0:01:17]} 33. Bd4 {[%clk 0:00:38]}  b6 {[%clk 0:01:15]} 34. Kf1 {[%clk 0:00:36]}  f4 {[%clk 0:01:15]} 35. Ke2 {[%clk 0:00:35]}  Kg6 {[%clk 0:01:15]} 36. Rc6+ {[%clk 0:00:34]}  Kf5 {[%clk 0:01:16]} 37. Rc8 {[%clk 0:00:29]}  g4 {[%clk 0:01:14]} 38. Rc6 {[%clk 0:00:23]}  gxh3 {[%clk 0:01:06]} 39. gxh3 {[%clk 0:00:22]}  f3+ {[%clk 0:01:07]} 40. Kd2 {[%clk 0:00:21]}  Rd5 {[%clk 0:01:03]} 41. Kc3 {[%clk 0:00:18]}  Rxb5 {[%clk 0:01:03]} 42. Kc4 {[%clk 0:00:18]}  Ra5 {[%clk 0:01:04]} 43. Rc8 {[%clk 0:00:16]}  Bg5 {[%clk 0:01:04]} 44. Rf8+ {[%clk 0:00:15]}  Ke6 {[%clk 0:01:04]} 45. Re8+ {[%clk 0:00:15]}  Kf5 {[%clk 0:01:04]} 46. Rf8+ {[%clk 0:00:15]}  Kg6 {[%clk 0:01:05]} 47. Re8 {[%clk 0:00:15]}  Kf7 {[%clk 0:01:01]} 48. Rxe4 {[%clk 0:00:14]}  Ra2 {[%clk 0:00:52]} 49. Rg4 {[%clk 0:00:14]}  Kg6 {[%clk 0:00:52]} 50. e4 {[%clk 0:00:13]}  Kh5 {[%clk 0:00:51]} 51. e5 {[%clk 0:00:12]}  Re2 {[%clk 0:00:51]} 52. Kd5 {[%clk 0:00:12]}  Kg6 {[%clk 0:00:45]} 53. e6 {[%clk 0:00:12]}  Kf5 {[%clk 0:00:44]} 54. b4 {[%clk 0:00:09]}  a5 {[%clk 0:00:43]} 55. b5 {[%clk 0:00:07]}  a4 {[%clk 0:00:39]} 56. Rxg5+ {[%clk 0:00:05]}  Kxg5 {[%clk 0:00:39]} 57. Be5 {[%clk 0:00:04]}  Kg6 {[%clk 0:00:38]} 58. Kd6 {[%clk 0:00:04]}  a3 {[%clk 0:00:36]} 59. Kd7 {[%clk 0:00:02]}  Rxe5 {[%clk 0:00:36]} 0-1


[Site "https://www.chess.com"]

[Event "Titled Tuesday Blitz May 17 Early 2022"]
[White "Kowalczyk, Pawel"]
[Black "Bortnyk, Olexandr"]
[WhiteFideId "1130641"]
[BlackFideId "14120828"]
[WhiteElo "2344"]
[BlackElo "2723"]
[Result "0-1"]
[Round "02"]
[TimeControl "180+1"]
[Date "2022.05.17"]
[WhiteClock "0:00:04"]
[BlackClock "0:00:09"]

1. e4 {[%clk 0:03:00]}  Nf6 {[%clk 0:02:59]} 2. e5 {[%clk 0:02:59]}  Nd5 {[%clk 0:02:59]} 3. Nf3 {[%clk 0:02:59]}  d6 {[%clk 0:02:59]} 4. Bc4 {[%clk 0:02:55]}  Nb6 {[%clk 0:02:59]} 5. Bb3 {[%clk 0:02:53]}  c5 {[%clk 0:02:59]} 6. c3 {[%clk 0:02:47]}  c4 {[%clk 0:02:58]} 7. Bxc4 {[%clk 0:02:40]}  Nxc4 {[%clk 0:02:52]} 8. Qa4+ {[%clk 0:02:39]}  Nc6 {[%clk 0:02:53]} 9. Qxc4 {[%clk 0:02:40]}  dxe5 {[%clk 0:02:48]} 10. O-O {[%clk 0:02:37]}  Bf5 {[%clk 0:02:15]} 11. Re1 {[%clk 0:02:35]}  Bd3 {[%clk 0:02:07]} 12. Qa4 {[%clk 0:02:33]}  f6 {[%clk 0:02:03]} 13. b4 {[%clk 0:02:26]}  b5 {[%clk 0:01:59]} 14. Qd1 {[%clk 0:02:17]}  Qd5 {[%clk 0:01:41]} 15. a4 {[%clk 0:02:09]}  bxa4 {[%clk 0:01:29]} 16. Qxa4 {[%clk 0:02:00]}  g5 {[%clk 0:01:25]} 17. c4 {[%clk 0:01:54]}  Qxc4 {[%clk 0:01:20]} 18. Na3 {[%clk 0:01:43]}  Qd5 {[%clk 0:01:14]} 19. b5 {[%clk 0:01:39]}  Nd4 {[%clk 0:01:14]} 20. b6+ {[%clk 0:01:12]}  Qc6 {[%clk 0:01:13]} 21. Qxc6+ {[%clk 0:01:00]}  Nxc6 {[%clk 0:01:14]} 22. Re3 {[%clk 0:01:00]}  e4 {[%clk 0:00:57]} 23. Ne1 {[%clk 0:01:00]}  axb6 {[%clk 0:00:56]} 24. Nxd3 {[%clk 0:00:59]}  exd3 {[%clk 0:00:57]} 25. Bb2 {[%clk 0:00:57]}  e5 {[%clk 0:00:48]} 26. Rxd3 {[%clk 0:00:56]}  Bc5 {[%clk 0:00:47]} 27. Nc4 {[%clk 0:00:48]}  Rxa1+ {[%clk 0:00:47]} 28. Bxa1 {[%clk 0:00:47]}  Ke7 {[%clk 0:00:48]} 29. Ne3 {[%clk 0:00:48]}  Ra8 {[%clk 0:00:46]} 30. Bc3 {[%clk 0:00:47]}  e4 {[%clk 0:00:31]} 31. Nd5+ {[%clk 0:00:38]}  Kd6 {[%clk 0:00:22]} 32. Nxb6+ {[%clk 0:00:32]}  exd3 {[%clk 0:00:23]} 33. Nxa8 {[%clk 0:00:32]}  Nd4 {[%clk 0:00:19]} 34. Kf1 {[%clk 0:00:30]}  Kc6 {[%clk 0:00:18]} 35. Ba5 {[%clk 0:00:26]}  Ne6 {[%clk 0:00:16]} 36. Bc3 {[%clk 0:00:15]}  f5 {[%clk 0:00:16]} 37. h3 {[%clk 0:00:06]}  Kb7 {[%clk 0:00:15]} 38. g4 {[%clk 0:00:03]}  fxg4 {[%clk 0:00:16]} 39. hxg4 {[%clk 0:00:04]}  Kxa8 {[%clk 0:00:17]} 40. Kg2 {[%clk 0:00:04]}  Nd4 {[%clk 0:00:06]} 41. Bxd4 {[%clk 0:00:01]}  Bxd4 {[%clk 0:00:07]} 42. Kf3 {[%clk 0:00:02]}  Kb7 {[%clk 0:00:07]} 43. Ke4 {[%clk 0:00:02]}  Bxf2 {[%clk 0:00:08]} 44. Kxd3 {[%clk 0:00:03]}  Kc6 {[%clk 0:00:08]} 45. Ke4 {[%clk 0:00:03]}  Be1 {[%clk 0:00:09]} 46. d4 {[%clk 0:00:03]}  Bd2 {[%clk 0:00:09]} 47. Ke5 {[%clk 0:00:04]}  Kd7 {[%clk 0:00:08]} 48. d5 {[%clk 0:00:04]}  Bf4+ {[%clk 0:00:08]} 49. Ke4 {[%clk 0:00:03]}  Kd6 {[%clk 0:00:09]} 50. Kd4 {[%clk 0:00:03]}  h6 {[%clk 0:00:09]} 51. Ke4 {[%clk 0:00:04]}  Be5 {[%clk 0:00:09]} 0-1


[Site "https://www.chess.com"]

[Event "Titled Tuesday Blitz May 17 Early 2022"]
[White "Lodici, Lorenzo"]
[Black "Ciorgovean, Iustin"]
[WhiteFideId "884189"]
[BlackFideId "1242911"]
[WhiteElo "2265"]
[BlackElo "2075"]
[Result "1-0"]
[Round "02"]
[TimeControl "180+1"]
[Date "2022.05.17"]
[WhiteClock "0:01:28"]
[BlackClock "0:00:48"]

1. c4 {[%clk 0:03:00]}  Nf6 {[%clk 0:02:57]} 2. Nc3 {[%clk 0:03:00]}  e5 {[%clk 0:02:56]} 3. Nf3 {[%clk 0:03:00]}  Nc6 {[%clk 0:02:57]} 4. e3 {[%clk 0:02:59]}  Bb4 {[%clk 0:02:56]} 5. Qc2 {[%clk 0:02:59]}  Bxc3 {[%clk 0:02:55]} 6. Qxc3 {[%clk 0:02:59]}  Qe7 {[%clk 0:02:55]} 7. d4 {[%clk 0:02:57]}  Ne4 {[%clk 0:02:52]} 8. Qd3 {[%clk 0:02:57]}  exd4 {[%clk 0:02:52]} 9. Nxd4 {[%clk 0:02:56]}  O-O {[%clk 0:02:49]} 10. Be2 {[%clk 0:02:55]}  Qb4+ {[%clk 0:02:38]} 11. Kf1 {[%clk 0:02:54]}  Qe7 {[%clk 0:02:38]} 12. f3 {[%clk 0:02:54]}  Nc5 {[%clk 0:02:37]} 13. Qc3 {[%clk 0:02:53]}  f5 {[%clk 0:02:26]} 14. b3 {[%clk 0:02:52]}  d6 {[%clk 0:02:25]} 15. Nxc6 {[%clk 0:02:50]}  bxc6 {[%clk 0:02:25]} 16. Bb2 {[%clk 0:02:51]}  a5 {[%clk 0:02:24]} 17. Kf2 {[%clk 0:02:47]}  Bb7 {[%clk 0:02:02]} 18. Rhe1 {[%clk 0:02:44]}  Nd7 {[%clk 0:01:55]} 19. Bf1 {[%clk 0:02:33]}  c5 {[%clk 0:01:55]} 20. Kg1 {[%clk 0:02:26]}  Ne5 {[%clk 0:01:49]} 21. Qd2 {[%clk 0:02:15]}  a4 {[%clk 0:01:29]} 22. Bc3 {[%clk 0:02:05]}  axb3 {[%clk 0:01:22]} 23. axb3 {[%clk 0:02:06]}  Rxa1 {[%clk 0:01:22]} 24. Bxa1 {[%clk 0:02:05]}  Ra8 {[%clk 0:01:21]} 25. Bc3 {[%clk 0:02:02]}  Bc6 {[%clk 0:01:13]} 26. Qb2 {[%clk 0:01:50]}  h6 {[%clk 0:01:10]} 27. h3 {[%clk 0:01:44]}  Bxf3 {[%clk 0:00:58]} 28. Bxe5 {[%clk 0:01:41]}  Qxe5 {[%clk 0:00:56]} 29. Qxe5 {[%clk 0:01:41]}  dxe5 {[%clk 0:00:57]} 30. gxf3 {[%clk 0:01:41]}  Ra2 {[%clk 0:00:58]} 31. Rd1 {[%clk 0:01:38]}  Rb2 {[%clk 0:00:58]} 32. Rd5 {[%clk 0:01:37]}  e4 {[%clk 0:00:49]} 33. fxe4 {[%clk 0:01:36]}  fxe4 {[%clk 0:00:49]} 34. Rxc5 {[%clk 0:01:37]}  Rxb3 {[%clk 0:00:49]} 35. Kf2 {[%clk 0:01:37]}  Rb2+ {[%clk 0:00:48]} 36. Be2 {[%clk 0:01:28]} 1-0


[Site "https://www.chess.com"]

[Event "Titled Tuesday Blitz May 17 Early 2022"]
[White "Moksh Amit Doshi"]
[Black "Harsha Bharathakoti"]
[WhiteFideId "25064967"]
[BlackFideId "5078776"]
[WhiteElo "2245"]
[BlackElo "2575"]
[Result "1-0"]
[Round "02"]
[TimeControl "180+1"]
[Date "2022.05.17"]
[WhiteClock "0:00:16"]
[BlackClock "0:00:06"]

1. d4 {[%clk 0:03:00]}  Nf6 {[%clk 0:02:58]} 2. c4 {[%clk 0:02:57]}  c5 {[%clk 0:02:56]} 3. d5 {[%clk 0:02:52]}  e6 {[%clk 0:02:56]} 4. Nc3 {[%clk 0:02:51]}  exd5 {[%clk 0:02:57]} 5. cxd5 {[%clk 0:02:52]}  d6 {[%clk 0:02:58]} 6. e4 {[%clk 0:02:52]}  g6 {[%clk 0:02:57]} 7. Nf3 {[%clk 0:02:52]}  Bg7 {[%clk 0:02:50]} 8. h3 {[%clk 0:02:51]}  O-O {[%clk 0:02:47]} 9. Bd3 {[%clk 0:02:52]}  b5 {[%clk 0:02:24]} 10. Nxb5 {[%clk 0:02:51]}  Re8 {[%clk 0:01:59]} 11. O-O {[%clk 0:02:51]}  Nxe4 {[%clk 0:01:58]} 12. Re1 {[%clk 0:02:51]}  Nf6 {[%clk 0:01:55]} 13. Rxe8+ {[%clk 0:02:42]}  Nxe8 {[%clk 0:01:56]} 14. Bg5 {[%clk 0:02:39]}  Qb6 {[%clk 0:01:27]} 15. Qe2 {[%clk 0:02:09]}  Bd7 {[%clk 0:01:26]} 16. a4 {[%clk 0:02:04]}  a6 {[%clk 0:01:16]} 17. a5 {[%clk 0:01:22]}  Qb7 {[%clk 0:01:16]} 18. Nc3 {[%clk 0:01:23]}  h6 {[%clk 0:01:05]} 19. Bf4 {[%clk 0:01:20]}  Qc7 {[%clk 0:00:54]} 20. Re1 {[%clk 0:01:18]}  Qd8 {[%clk 0:00:24]} 21. Nd2 {[%clk 0:01:04]}  Qxa5 {[%clk 0:00:18]} 22. Nc4 {[%clk 0:01:01]}  Qc7 {[%clk 0:00:19]} 23. Qe3 {[%clk 0:00:37]}  h5 {[%clk 0:00:19]} 24. Ne4 {[%clk 0:00:36]}  Bf8 {[%clk 0:00:08]} 25. Qg3 {[%clk 0:00:36]}  Qd8 {[%clk 0:00:04]} 26. Nexd6 {[%clk 0:00:27]}  Nxd6 {[%clk 0:00:05]} 27. Nxd6 {[%clk 0:00:28]}  Bg7 {[%clk 0:00:02]} 28. Nxf7 {[%clk 0:00:20]}  Kxf7 {[%clk 0:00:02]} 29. Qxg6+ {[%clk 0:00:21]}  Kg8 {[%clk 0:00:02]} 30. Bh6 {[%clk 0:00:18]}  Qf6 {[%clk 0:00:01]} 31. Qh7+ {[%clk 0:00:16]}  Kf7 {[%clk 0:00:01]} 32. Bxg7 {[%clk 0:00:14]}  Qxg7 {[%clk 0:00:02]} 33. Re7+ {[%clk 0:00:14]}  Kxe7 {[%clk 0:00:03]} 34. Qxg7+ {[%clk 0:00:15]}  Kd6 {[%clk 0:00:03]} 35. Qf6+ {[%clk 0:00:15]}  Kc7 {[%clk 0:00:03]} 36. Qe5+ {[%clk 0:00:15]}  Kb6 {[%clk 0:00:03]} 37. Qd6+ {[%clk 0:00:16]}  Kb7 {[%clk 0:00:04]} 38. Qxc5 {[%clk 0:00:16]}  a5 {[%clk 0:00:05]} 39. d6 {[%clk 0:00:16]}  Na6 {[%clk 0:00:06]} 40. Be4+ {[%clk 0:00:16]} 1-0


[Site "https://www.chess.com"]

[Event "Titled Tuesday Blitz May 17 Early 2022"]
[White "Molina, Roberto Junio Brito"]
[Black "Maltsevskaya, Aleksandra"]
[WhiteFideId "2109450"]
[BlackFideId "24174041"]
[WhiteElo "2432"]
[BlackElo "2235"]
[Result "0-1"]
[Round "02"]
[TimeControl "180+1"]
[Date "2022.05.17"]
[WhiteClock "0:00:25"]
[BlackClock "0:00:37"]

1. d4 {[%clk 0:03:00]}  c5 {[%clk 0:03:00]} 2. d5 {[%clk 0:02:59]}  f5 {[%clk 0:02:55]} 3. Nc3 {[%clk 0:02:56]}  Nf6 {[%clk 0:02:52]} 4. g3 {[%clk 0:02:55]}  g6 {[%clk 0:02:49]} 5. Bg2 {[%clk 0:02:55]}  Bg7 {[%clk 0:02:48]} 6. Nh3 {[%clk 0:02:55]}  O-O {[%clk 0:02:46]} 7. O-O {[%clk 0:02:55]}  d6 {[%clk 0:02:39]} 8. a4 {[%clk 0:02:50]}  Nbd7 {[%clk 0:02:32]} 9. Nf4 {[%clk 0:02:49]}  Ne5 {[%clk 0:02:29]} 10. h4 {[%clk 0:02:49]}  a6 {[%clk 0:02:27]} 11. e3 {[%clk 0:02:23]}  Rb8 {[%clk 0:02:25]} 12. a5 {[%clk 0:02:21]}  b5 {[%clk 0:02:25]} 13. axb6 {[%clk 0:02:20]}  Qxb6 {[%clk 0:02:24]} 14. Ra2 {[%clk 0:02:19]}  Bd7 {[%clk 0:02:19]} 15. b3 {[%clk 0:02:17]}  c4 {[%clk 0:02:12]} 16. Na4 {[%clk 0:01:50]}  Qb7 {[%clk 0:02:03]} 17. Ra3 {[%clk 0:01:41]}  Rfc8 {[%clk 0:02:02]} 18. Bb2 {[%clk 0:01:37]}  Ne4 {[%clk 0:01:54]} 19. Bd4 {[%clk 0:01:34]}  Qb4 {[%clk 0:01:45]} 20. Qa1 {[%clk 0:01:26]}  cxb3 {[%clk 0:01:32]} 21. cxb3 {[%clk 0:01:27]}  Nd2 {[%clk 0:01:26]} 22. Bc3 {[%clk 0:01:22]}  Rxc3 {[%clk 0:01:20]} 23. Nxc3 {[%clk 0:01:21]}  Nef3+ {[%clk 0:01:18]} 24. Bxf3 {[%clk 0:01:20]}  Bxc3 {[%clk 0:01:18]} 25. Ra4 {[%clk 0:01:07]}  Qxb3 {[%clk 0:01:06]} 26. Bd1 {[%clk 0:01:01]}  Bxa1 {[%clk 0:00:54]} 27. Bxb3 {[%clk 0:01:01]}  Bxa4 {[%clk 0:00:54]} 28. Bxa4 {[%clk 0:00:58]}  Nxf1 {[%clk 0:00:53]} 29. Kxf1 {[%clk 0:00:59]}  a5 {[%clk 0:00:49]} 30. Nd3 {[%clk 0:00:56]}  Bc3 {[%clk 0:00:47]} 31. Ke2 {[%clk 0:00:56]}  Rb1 {[%clk 0:00:47]} 32. Bd7 {[%clk 0:00:50]}  Ra1 {[%clk 0:00:44]} 33. Nf4 {[%clk 0:00:46]}  a4 {[%clk 0:00:44]} 34. Kd3 {[%clk 0:00:46]}  Be5 {[%clk 0:00:44]} 35. Ne6 {[%clk 0:00:31]}  a3 {[%clk 0:00:41]} 36. Ba4 {[%clk 0:00:27]}  a2 {[%clk 0:00:40]} 37. Bb3 {[%clk 0:00:27]}  Rd1+ {[%clk 0:00:39]} 38. Bxd1 {[%clk 0:00:26]}  a1=Q {[%clk 0:00:39]} 39. Bf3 {[%clk 0:00:25]}  Qf1+ {[%clk 0:00:37]} 0-1


[Site "https://www.chess.com"]

[Event "Titled Tuesday Blitz May 17 Early 2022"]
[White "Nakamura, Hikaru"]
[Black "Druska, Juraj"]
[WhiteFideId "2016192"]
[BlackFideId "14915650"]
[WhiteElo "2850"]
[BlackElo "2369"]
[Result "0-1"]
[Round "02"]
[TimeControl "180+1"]
[Date "2022.05.17"]
[WhiteClock "0:01:40"]
[BlackClock "0:00:07"]

1. Nf3 {[%clk 0:03:00]}  d5 {[%clk 0:02:59]} 2. e3 {[%clk 0:03:01]}  c5 {[%clk 0:03:00]} 3. b3 {[%clk 0:03:01]}  Nc6 {[%clk 0:03:00]} 4. Bb5 {[%clk 0:03:01]}  f6 {[%clk 0:03:00]} 5. Bxc6+ {[%clk 0:03:00]}  bxc6 {[%clk 0:03:00]} 6. d4 {[%clk 0:03:01]}  cxd4 {[%clk 0:02:55]} 7. exd4 {[%clk 0:03:01]}  e6 {[%clk 0:02:53]} 8. O-O {[%clk 0:03:01]}  Bd6 {[%clk 0:02:54]} 9. Ba3 {[%clk 0:03:01]}  Ne7 {[%clk 0:02:52]} 10. Re1 {[%clk 0:03:00]}  O-O {[%clk 0:02:52]} 11. c4 {[%clk 0:03:00]}  a5 {[%clk 0:02:47]} 12. Bxd6 {[%clk 0:03:00]}  Qxd6 {[%clk 0:02:48]} 13. Nc3 {[%clk 0:03:00]}  Ng6 {[%clk 0:02:39]} 14. Rc1 {[%clk 0:02:57]}  Ba6 {[%clk 0:02:29]} 15. Na4 {[%clk 0:02:54]}  e5 {[%clk 0:02:15]} 16. g3 {[%clk 0:02:53]}  e4 {[%clk 0:02:09]} 17. Nd2 {[%clk 0:02:53]}  f5 {[%clk 0:02:08]} 18. f4 {[%clk 0:02:53]}  exf3 {[%clk 0:01:40]} 19. Nxf3 {[%clk 0:02:47]}  f4 {[%clk 0:01:39]} 20. g4 {[%clk 0:02:47]}  Rae8 {[%clk 0:01:40]} 21. Qd2 {[%clk 0:02:31]}  Bc8 {[%clk 0:01:37]} 22. h3 {[%clk 0:02:28]}  Re3 {[%clk 0:01:37]} 23. Rc3 {[%clk 0:02:28]}  Rfe8 {[%clk 0:01:29]} 24. Qf2 {[%clk 0:02:12]}  dxc4 {[%clk 0:01:12]} 25. bxc4 {[%clk 0:02:04]}  Rxe1+ {[%clk 0:01:05]} 26. Nxe1 {[%clk 0:02:05]}  Qb4 {[%clk 0:01:01]} 27. Nd3 {[%clk 0:02:05]}  Qxa4 {[%clk 0:00:59]} 28. Qd2 {[%clk 0:02:05]}  Re3 {[%clk 0:00:49]} 29. a3 {[%clk 0:02:03]}  Nh4 {[%clk 0:00:44]} 30. Kf1 {[%clk 0:01:50]}  Nf3 {[%clk 0:00:42]} 31. Qc1 {[%clk 0:01:46]}  c5 {[%clk 0:00:24]} 32. d5 {[%clk 0:01:46]}  Qe8 {[%clk 0:00:19]} 33. Kf2 {[%clk 0:01:45]}  Re2+ {[%clk 0:00:11]} 34. Kf1 {[%clk 0:01:45]}  Qe4 {[%clk 0:00:07]} 35. Qxf4 {[%clk 0:01:43]}  Nh2+ {[%clk 0:00:06]} 36. Kg1 {[%clk 0:01:40]}  Qg2# {[%clk 0:00:07]} 0-1


[Site "https://www.chess.com"]

[Event "Titled Tuesday Blitz May 17 Early 2022"]
[White "Papp, Levente"]
[Black "Yilmaz, Mustafa"]
[WhiteFideId "751243"]
[BlackFideId "6302718"]
[WhiteElo "2308"]
[BlackElo "2568"]
[Result "0-1"]
[Round "02"]
[TimeControl "180+1"]
[Date "2022.05.17"]
[WhiteClock "0:00:18"]
[BlackClock "0:00:28"]

1. c4 {[%clk 0:03:00]}  Nf6 {[%clk 0:02:59]} 2. Nc3 {[%clk 0:03:00]}  g6 {[%clk 0:02:53]} 3. e4 {[%clk 0:03:00]}  d6 {[%clk 0:02:53]} 4. g3 {[%clk 0:02:59]}  e5 {[%clk 0:02:49]} 5. Bg2 {[%clk 0:03:00]}  Bg7 {[%clk 0:02:49]} 6. Nge2 {[%clk 0:03:00]}  O-O {[%clk 0:02:49]} 7. O-O {[%clk 0:03:01]}  Nbd7 {[%clk 0:02:40]} 8. d3 {[%clk 0:02:59]}  c6 {[%clk 0:02:35]} 9. h3 {[%clk 0:02:58]}  Nc5 {[%clk 0:02:25]} 10. b4 {[%clk 0:02:46]}  Ne6 {[%clk 0:02:21]} 11. Rb1 {[%clk 0:02:47]}  a5 {[%clk 0:02:21]} 12. b5 {[%clk 0:02:46]}  Nc5 {[%clk 0:02:18]} 13. Be3 {[%clk 0:02:30]}  Nfd7 {[%clk 0:02:09]} 14. Qd2 {[%clk 0:02:16]}  a4 {[%clk 0:02:04]} 15. f4 {[%clk 0:02:08]}  Ne6 {[%clk 0:01:18]} 16. Rb4 {[%clk 0:01:34]}  Ndc5 {[%clk 0:01:16]} 17. bxc6 {[%clk 0:01:29]}  bxc6 {[%clk 0:01:16]} 18. Rfb1 {[%clk 0:01:29]}  Nd4 {[%clk 0:01:13]} 19. Bf2 {[%clk 0:01:27]}  Bxh3 {[%clk 0:01:04]} 20. Nxd4 {[%clk 0:01:21]}  exd4 {[%clk 0:01:04]} 21. Bxh3 {[%clk 0:01:18]}  dxc3 {[%clk 0:01:04]} 22. Qc2 {[%clk 0:01:15]}  Re8 {[%clk 0:00:56]} 23. Bg2 {[%clk 0:01:08]}  Ne6 {[%clk 0:00:56]} 24. e5 {[%clk 0:00:45]}  dxe5 {[%clk 0:00:54]} 25. Bxc6 {[%clk 0:00:45]}  exf4 {[%clk 0:00:54]} 26. Bxa8 {[%clk 0:00:42]}  fxg3 {[%clk 0:00:53]} 27. Rb8 {[%clk 0:00:33]}  gxf2+ {[%clk 0:00:51]} 28. Kf1 {[%clk 0:00:34]}  Qxb8 {[%clk 0:00:44]} 29. Rxb8 {[%clk 0:00:35]}  Rxb8 {[%clk 0:00:44]} 30. Bd5 {[%clk 0:00:35]}  Rb2 {[%clk 0:00:42]} 31. Qc1 {[%clk 0:00:22]}  Nc5 {[%clk 0:00:28]} 32. Qf4 {[%clk 0:00:18]}  Rb1+ {[%clk 0:00:28]} 0-1


[Site "https://www.chess.com"]